fUSD/lending_fUSD_20241202
["ID","MTS","AMOUNT","RATE_DAILY","PERIOD"]
[343967839,1733160792262,500.0,0.000247,120]
[343967840,1733160798515,200.0,0.00024853,120]
[343967841,1733160817175,6455.4381423,1e-05,2]
[343967842,1733160832847,3705.97,6.953e-05,2]
[343967847,1733160968360,166.66,7.143e-05,2]
[343967850,1733161082887,3657.54,6.912e-05,2]
[343967851,1733161230642,197.66,6.908e-05,2]
[343967854,1733161585023,166.67,7.095e-05,2]
[343967865,1733161831491,-200.0,7.351e-05,2]
[343967866,1733161831501,-200.0,7.351e-05,2]
[343967867,1733161831511,-535.68519818,7.351e-05,2]
[343967868,1733161831521,-2500.0,7.599e-05,2]
[343967869,1733161831530,-150.0,7.599e-05,2]
[343967870,1733161831540,-300.0,7.599e-05,2]
[343967871,1733161831549,-318.23748052,7.6e-05,2]
[343967872,1733161831570,-6621.08810826,7.6e-05,2]
[343967876,1733161835401,-420.64453429,7.6e-05,2]
[343967877,1733161835413,-2115.73752,7.6e-05,2]
[343967878,1733161835437,-389.23868554,7.6e-05,2]
[343967879,1733161837581,-6440.34671103,7.6e-05,2]
[343967880,1733161837593,-13301.34632884,7.6e-05,2]
[343967881,1733161837604,-3755.03476905,7.6e-05,2]
[343967882,1733161837768,-66129.32196026,7.6e-05,2]
[343967883,1733161837778,-500.0,7.673e-05,2]
[343967884,1733161837787,-500.0,7.673e-05,2]
[343967885,1733161837796,-268.538268,7.673e-05,2]
[343967886,1733161837805,-500.0,7.673e-05,2]
[343967887,1733161837814,-500.0,7.673e-05,2]
[343967888,1733161837824,-14781.51746095,7.677e-05,2]
[343967889,1733161837833,-134978.9445337,7.677e-05,2]
[343967890,1733161837843,-134978.9445337,7.678e-05,2]
[343967891,1733161837852,-60237.23724601,7.679e-05,2]
[343967892,1733161837862,-3884.70127248,7.679e-05,2]
[343967893,1733161837871,-10539.82166443,7.681e-05,2]
[343967895,1733161837881,-200.0,7.682e-05,2]
[343967897,1733161837890,-134978.9445337,7.682e-05,2]
[343967899,1733161837899,-14781.51746095,7.682e-05,2]
[343967901,1733161837908,-10539.82166443,7.683e-05,2]
[343967903,1733161837917,-14781.51746095,7.683e-05,2]
[343967905,1733161837927,-60237.23724601,7.683e-05,2]
[343967906,1733161837937,-12949.0042418,7.684e-05,2]
[343967908,1733161837947,-134978.9445337,7.684e-05,2]
[343967910,1733161837956,-60237.23724601,7.685e-05,2]
[343967912,1733161837965,-14781.51746095,7.686e-05,2]
[343967914,1733161837975,-60237.23724601,7.686e-05,2]
[343967916,1733161837985,-14781.51746095,7.687e-05,2]
[343967918,1733161837994,-12949.0042418,7.687e-05,2]
[343967920,1733161838004,-134978.9445337,7.688e-05,2]
[343967922,1733161838014,-3884.70127248,7.688e-05,2]
[343967924,1733161838023,-60237.23724601,7.69e-05,2]
[343967926,1733161838032,-12949.0042418,7.692e-05,2]
[343967928,1733161838041,-60237.23724601,7.694e-05,2]
[343967930,1733161838051,-134978.9445337,7.695e-05,2]
[343967932,1733161838060,-200.0,7.695e-05,2]
[343967934,1733161838070,-10539.82166443,7.696e-05,2]
[343967936,1733161838080,-1081.063,7.698e-05,2]
[343967938,1733161838095,-575.71,7.698e-05,2]
[343967940,1733161838118,-10539.82166443,7.698e-05,2]
[343967942,1733161838133,-14781.51746095,7.698e-05,2]
[343967944,1733161838143,-10539.82166443,7.698e-05,2]
[343967947,1733161838152,-10539.82166443,7.699e-05,2]
[343967950,1733161838161,-249.99259783,7.699e-05,2]
[343967953,1733161838187,-1000.0,7.699e-05,2]
[343967955,1733161838198,-1000.0,7.699e-05,3]
[343967957,1733161838207,-1000.0,7.699e-05,4]
[343967959,1733161838216,-138691.87484938,7.699e-05,2]
[343967961,1733161838225,-2574.28,7.699e-05,2]
[343967963,1733161838234,-423.90739343,7.699e-05,2]
[343967965,1733161838243,-605.0,7.7e-05,2]
[343967967,1733161838253,-46341.85444255,7.7e-05,2]
[343967970,1733161838268,-229063.10522815,7.7e-05,2]
[343967972,1733161838279,-869.33410344,7.7e-05,2]
[343967974,1733161838290,-1017.99140142,7.7e-05,2]
[343967976,1733161838301,-928.03255248,7.7e-05,2]
[343967979,1733161838314,-1322.564865,7.7e-05,2]
[343967981,1733161838329,-15799.66559469,7.7e-05,2]
[343967983,1733161838341,-14193.000006,7.7e-05,2]
[343968117,1733161839672,-444077.64469375,7.7e-05,2]
[343968120,1733161839689,-34406.51238342,7.7e-05,2]
[343968122,1733161839703,-1963.90086244,7.7e-05,2]
[343968134,1733161839813,-26183.44072501,7.7e-05,2]
[343968139,1733161839856,-2346.38066,7.7e-05,2]
[343968388,1733161842501,-1911.816,7.7e-05,2]
[343968401,1733161842613,-1854.23102803,7.7e-05,2]
[343968406,1733161842656,-6968.07887371,7.7e-05,2]
[343968408,1733161842667,-12084.86277085,7.7e-05,2]
[343968411,1733161842681,-2631.71657511,7.7e-05,2]
[343968429,1733161842843,-5876.00002938,7.7e-05,2]
[343968431,1733161842855,-2200.58225297,7.7e-05,2]
[343968433,1733161842866,-7049.28926777,7.7e-05,2]
[343968435,1733161842877,-6040.84685056,7.7e-05,2]
[343968437,1733161842888,-849.43316797,7.7e-05,2]
[343968548,1733161846759,-355.8693063,7.7e-05,2]
[343968549,1733161846771,-190275.63660312,7.7e-05,2]
[343968550,1733161846782,-477.4694056,7.7e-05,2]
[343968551,1733161846796,-4018.871655,7.7e-05,2]
[343968552,1733161846807,-13234.52361465,7.7e-05,2]
[343968553,1733161846839,-11530.22868144,7.7e-05,2]
[343968554,1733161846850,-10956.64188691,7.7e-05,2]
[343968555,1733161846861,-7968.60003483,7.7e-05,2]
[343968556,1733161846872,-2337.1999,7.7e-05,2]
[343968557,1733161846884,-9559.0,7.7e-05,2]
[343968558,1733161846895,-1116.7225204,7.7e-05,2]
[343968559,1733161846906,-43530.530675,7.7e-05,2]
[343968560,1733161846917,-1095.08744554,7.7e-05,2]
[343968561,1733161846928,-13925.56804001,7.7e-05,2]
[343968562,1733161846942,-52480.92832664,7.7e-05,2]
[343968563,1733161846953,-36016.48931008,7.7e-05,2]
[343968564,1733161846964,-58721.77167136,7.7e-05,2]
[343968565,1733161846975,-45534.81729,7.7e-05,2]
[343968566,1733161846987,-180075.0000005,7.7e-05,2]
[343968567,1733161854285,200.0,7e-05,2]
[343968568,1733161856429,500.0,7.1e-05,2]
[343968569,1733161873587,152.31,6.882e-05,2]
[343968600,1733161946373,500.0,0.00025,120]
[343968601,1733161947411,500.0,0.00025,120]
[343968602,1733161947478,500.0,0.00025,120]
[343968603,1733161947527,1718.84,0.00025,120]
[343968604,1733161947734,7298.41,0.00025,120]
[343968605,1733161947936,2038.02,0.00025,120]
[343968606,1733161948625,500.0,0.00025,120]
[343968607,1733161948719,500.0,0.00025,120]
[343968608,1733161949343,997.08,0.00025,120]
[343968609,1733161949458,500.0,0.00025,120]
[343968610,1733161949744,500.0,0.00025,120]
[343968611,1733161950393,500.0,0.00025,120]
[343968612,1733161954109,500.0,0.00025,120]
[343968613,1733161954647,500.0,0.00025,120]
[343968614,1733161956726,1445.24,0.00025,120]
[343968615,1733161956787,500.0,0.00025,120]
[343968616,1733161956890,3730.79,0.00025,120]
[343968617,1733161957703,2050.15,0.00025,120]
[343968618,1733161957940,500.0,0.00025,120]
[343968619,1733161958086,2734.35,0.00025,120]
[343968620,1733161958515,500.0,0.00025,120]
[343968621,1733161958956,2510.48,0.00025,120]
[343968622,1733161960377,500.0,0.00025,120]
[343968623,1733161963998,3970.85,0.00025,120]
[343968624,1733161964088,1137.35,0.00025,120]
[343968625,1733161964341,500.0,0.00025,120]
[343968626,1733161964895,500.0,0.00025,120]
[343968627,1733161966550,510.40658052,0.00025,120]
[343968628,1733161966850,500.0,0.00025,120]
[343968629,1733161967725,500.0,0.00025,120]
[343968630,1733161968782,500.0,0.00025,120]
[343968631,1733161970655,500.0,0.00025,120]
[343968632,1733161972361,500.0,0.00025,120]
[343968633,1733161972916,2615.76,0.00025,120]
[343968634,1733161973183,11140.18,0.00025,120]
[343968635,1733161973325,9793.46,0.00025,120]
[343968636,1733161975626,4479.85,0.00025,120]
[343968637,1733161975750,2970.05,0.00025,120]
[343968638,1733161976610,500.0,0.00025,120]
[343968639,1733161976880,1210.6,0.00025,120]
[343968640,1733161979130,3008.94,0.00025,120]
[343968641,1733161979811,2500.0,0.00025,120]
[343968642,1733161981910,5773.36,0.00025,120]
[343968643,1733161982345,50957.39,0.00025,120]
[343968644,1733161983310,2483.43,0.00025,120]
[343968645,1733161983881,1392.28,0.00025,120]
[343968646,1733161983965,500.0,0.00025,120]
[343968647,1733161984196,3755.81,0.00025,120]
[343968648,1733161985207,500.0,0.00025,120]
[343968649,1733161985617,500.0,0.00025,120]
[343968650,1733161987534,500.0,0.00025,120]
[343968651,1733161989023,1184.32,0.00025,120]
[343968652,1733161989820,500.0,0.00025,120]
[343968653,1733161993437,1285.06,0.00025,120]
[343968654,1733161993756,500.0,0.00025,120]
[343968655,1733161993811,767.34,0.00025,120]
[343968656,1733161993957,1885.66,0.00025,120]
[343968657,1733161996333,1273.19,0.00025,120]
[343968658,1733161996584,695.96,0.00025,120]
[343968659,1733162000349,1662.35,0.00025,120]
[343968660,1733162000395,6779.9,0.00025,120]
[343968661,1733162000463,1946.62,0.00025,120]
[343968662,1733162002813,2695.91,0.00025,120]
[343968663,1733162003779,500.0,0.00025,120]
[343968664,1733162004880,500.0,0.00025,120]
[343968665,1733162005346,500.0,0.00025,120]
[343968666,1733162005515,500.0,0.00025,120]
[343968667,1733162006749,500.0,0.00025,120]
[343968668,1733162007868,26783.33,0.00025,120]
[343968669,1733162011707,500.0,0.00025,120]
[343968670,1733162011843,300.0,0.00025,120]
[343968671,1733162012089,680.16,0.00025,120]
[343968672,1733162013103,5064.35,0.00025,120]
[343968673,1733162013722,500.0,0.00025,120]
[343968674,1733162015785,2572.05,0.00025,120]
[343968675,1733162016253,500.2160895,0.00025,120]
[343968676,1733162016431,500.0,0.00025,120]
[343968677,1733162017772,1160.76,0.00025,120]
[343968678,1733162017849,2697.58,0.00025,120]
[343968679,1733162017908,500.0,0.00025,120]
[343968680,1733162018576,500.0,0.00025,120]
[343968681,1733162018623,500.0,0.00025,120]
[343968682,1733162020584,500.0,0.00025,120]
[343968683,1733162020768,741.5,0.00025,120]
[343968684,1733162025285,4229.75,0.00025,120]
[343968685,1733162025797,1184.14,0.00025,120]
[343968686,1733162025887,4327.24,0.00025,120]
[343968687,1733162026236,3338.81,0.00025,120]
[343968688,1733162028226,500.0,0.00025,120]
[343968689,1733162028360,21745.34,0.00025,120]
[343968690,1733162030605,500.0,0.00025,120]
[343968691,1733162030675,2737.63,0.00025,120]
[343968692,1733162033944,500.0,0.00025,120]
[343968693,1733162034576,1819.7,0.00025,120]
[343968694,1733162035030,170.43109178,0.00025,120]
[343968695,1733162036199,4566.28,0.00025,120]
[343968696,1733162036256,500.0,0.00025,120]
[343968697,1733162037194,500.0,0.00025,120]
[343968698,1733162037359,533.0,0.00025,120]
[343968699,1733162037861,10973.46,0.00025,120]
[343968700,1733162040419,644.58,0.00025,120]
[343968701,1733162041042,587.45,0.00025,120]
[343968702,1733162041330,500.0,0.00025,120]
[343968703,1733162042815,3844.8,0.00025,120]
[343968704,1733162046417,500.0,0.00025,120]
[343968705,1733162046477,500.0,0.00025,120]
[343968706,1733162049022,500.0,0.00025,120]
[343968707,1733162050876,5790.55,0.00025,120]
[343968708,1733162050961,1246.71,0.00025,120]
[343968709,1733162051591,500.0,0.00025,120]
[343968710,1733162052674,2716.32,0.00025,120]
[343968711,1733162052878,677.71,0.00025,120]
[343968712,1733162053829,500.0,0.00025,120]
[343968713,1733162053904,4698.29,0.00025,120]
[343968714,1733162054765,1470.38,0.00025,120]
[343968715,1733162055053,500.0,0.00025,120]
[343968716,1733162058464,789.76,0.00025,120]
[343968717,1733162058535,692.63,0.00025,120]
[343968718,1733162059805,1596.05,0.00025,120]
[343968719,1733162061088,1406.27,0.00025,120]
[343968720,1733162061276,500.0,0.00025,120]
[343968721,1733162062296,500.0,0.00025,120]
[343968722,1733162064189,500.0,0.00025,120]
[343968723,1733162064253,1391.24,0.00025,120]
[343968724,1733162070937,4608.35,0.00025,120]
[343968725,1733162071857,1980.66,0.00025,120]
[343968726,1733162072273,500.0,0.00025,120]
[343968727,1733162072435,4511.53,0.00025,120]
[343968728,1733162072725,683.43,0.00025,120]
[343968729,1733162074016,500.0,0.00025,120]
[343968730,1733162074687,2285.14,0.00025,120]
[343968731,1733162076112,500.0,0.00025,120]
[343968732,1733162077089,614.33837756,0.00025,120]
[343968733,1733162080848,626.13,0.00025,120]
[343968734,1733162081291,500.0,0.00025,120]
[343968735,1733162081361,500.0,0.00025,120]
[343968736,1733162083398,3280.7,0.00025,120]
[343968737,1733162084165,2085.63,0.00025,120]
[343968738,1733162084323,500.0,0.00025,120]
[343968739,1733162085492,1812.41,0.00025,120]
[343968740,1733162086394,500.0,0.00025,120]
[343968741,1733162088311,7425.77,0.00025,120]
[343968742,1733162089317,500.0,0.00025,120]
[343968743,1733162091866,1861.65,0.00025,120]
[343968744,1733162092564,500.0,0.00025,120]
[343968745,1733162093513,671.97,0.00025,120]
[343968746,1733162095008,21138.19,0.00025,120]
[343968747,1733162095081,1022.09,0.00025,120]
[343968748,1733162098125,920.88,0.00025,120]
[343968749,1733162099667,500.0,0.00025,120]
[343968750,1733162103558,6947.41,0.00025,120]
[343968751,1733162103698,500.0,0.00025,120]
[343968752,1733162105511,693.76,0.00025,120]
[343968753,1733162105636,500.0,0.00025,120]
[343968754,1733162105694,4175.26,0.00025,120]
[343968755,1733162105856,500.0,0.00025,120]
[343968756,1733162107708,1261.71,0.00025,120]
[343968757,1733162107980,771.98,0.00025,120]
[343968758,1733162108324,500.0,0.00025,120]
[343968759,1733162112798,34834.85,0.00025,120]
[343968760,1733162115274,500.0,0.00025,120]
[343968761,1733162115674,500.0,0.00025,120]
[343968762,1733162116419,500.0,0.00025,120]
[343968763,1733162116468,500.0,0.00025,120]
[343968764,1733162116595,500.0,0.00025,120]
[343968765,1733162117594,888.0,0.00025,120]
[343968766,1733162117777,1743.12,0.00025,120]
[343968767,1733162119058,2520.34,0.00025,120]
[343968768,1733162119114,1382.79,0.00025,120]
[343968769,1733162120207,11028.94,0.00025,120]
[343968770,1733162122157,2803.09,0.00025,120]
[343968771,1733162126817,1668.31,0.00025,120]
[343968772,1733162129974,836.89,0.00025,120]
[343968773,1733162130398,500.0,0.00025,120]
[343968774,1733162130907,10086.87,0.00025,120]
[343968775,1733162133904,500.0,0.00025,120]
[343968776,1733162134480,500.0,0.00025,120]
[343968777,1733162136060,5802.75,0.00025,120]
[343968778,1733162138548,500.0,0.00025,120]
[343968779,1733162138813,500.0,0.00025,120]
[343968780,1733162139013,483.22103679,0.00025,120]
[343968781,1733162140965,500.0,0.00025,120]
[343968782,1733162141077,500.0,0.00025,120]
[343968783,1733162142211,2519.85,0.00025,120]
[343968784,1733162142332,500.0,0.00025,120]
[343968785,1733162143186,500.0,0.00025,120]
[343968786,1733162143442,1706.84,0.00025,120]
[343968787,1733162145316,1114.98,0.00025,120]
[343968788,1733162146364,2015.56,0.00025,120]
[343968789,1733162146727,1540.79,0.00025,120]
[343968790,1733162147648,178.77047734,0.00025,120]
[343968791,1733162150342,500.0,0.00025,120]
[343968792,1733162153145,4967.22,0.00025,120]
[343968793,1733162153211,3612.91,0.00025,120]
[343968794,1733162153264,500.0,0.00025,120]
[343968795,1733162154765,853.42,0.00025,120]
[343968796,1733162155068,810.73,0.00025,120]
[343968797,1733162155508,1106.5,0.00025,120]
[343968798,1733162155566,500.0,0.00025,120]
[343968799,1733162156547,2105.28,0.00025,120]
[343968800,1733162156643,500.0,0.00025,120]
[343968801,1733162162138,2311.5,0.00025,120]
[343968802,1733162162192,1661.67,0.00025,120]
[343968803,1733162164512,6815.95,0.00025,120]
[343968804,1733162165475,674.06,0.00025,120]
[343968805,1733162167083,656.57,0.00025,120]
[343968806,1733162167242,500.0,0.00025,120]
[343968807,1733162168627,1894.68,0.00025,120]
[343968808,1733162169482,500.0,0.00025,120]
[343968809,1733162174548,1565.27,0.00025,120]
[343968810,1733162174881,673.83,0.00025,120]
[343968811,1733162175027,500.0,0.00025,120]
[343968812,1733162176523,31126.96,0.00025,120]
[343968813,1733162177616,1879.28,0.00025,120]
[343968814,1733162177967,9954.33,0.00025,120]
[343968815,1733162178173,500.0,0.00025,120]
[343968816,1733162180044,3739.97,0.00025,120]
[343968817,1733162180516,500.0,0.00025,120]
[343968818,1733162185057,500.0,0.00025,120]
[343968819,1733162185413,500.0,0.00025,120]
[343968820,1733162186638,500.0,0.00025,120]
[343968821,1733162186695,3591.58,0.00025,120]
[343968822,1733162186752,500.0,0.00025,120]
[343968823,1733162186843,982.9,0.00025,120]
[343968824,1733162187979,4541.15,0.00025,120]
[343968825,1733162188076,14093.74,0.00025,120]
[343968826,1733162188328,500.0,0.00025,120]
[343968827,1733162189773,691.42,0.00025,120]
[343968828,1733162189962,500.0,0.00025,120]
[343968829,1733162190747,1533.0,0.00025,120]
[343968830,1733162191158,1643.69,0.00025,120]
[343968831,1733162192737,500.0,0.00025,120]
[343968832,1733162193078,872.69,0.00025,120]
[343968833,1733162198038,1672.6,0.00025,120]
[343968834,1733162198174,500.0,0.00025,120]
[343968835,1733162198329,500.0,0.00025,120]
[343968836,1733162198398,10229.98,0.00025,120]
[343968837,1733162198494,500.0,0.00025,120]
[343968838,1733162200327,1303.58,0.00025,120]
[343968839,1733162201037,4081.5,0.00025,120]
[343968840,1733162202448,3110.1,0.00025,120]
[343968841,1733162203376,5780.05,0.00025,120]
[343968842,1733162204312,883.01,0.00025,120]
[343968843,1733162204771,8586.64,0.00025,120]
[343968844,1733162205019,500.0,0.00025,120]
[343968845,1733162210133,508.68,0.00025,120]
[343968846,1733162210959,500.0,0.00025,120]
[343968847,1733162211819,850.62,0.00025,120]
[343968848,1733162212379,7235.13,0.00025,120]
[343968849,1733162212838,500.0,0.00025,120]
[343968850,1733162213459,3826.24,0.00025,120]
[343968851,1733162214542,7020.88,0.00025,120]
[343968852,1733162215869,1032.07,0.00025,120]
[343968853,1733162216974,877.55,0.00025,120]
[343968854,1733162220182,500.0,0.00025,120]
[343968855,1733162221712,7611.74,0.00025,120]
[343968856,1733162222194,500.0,0.00025,120]
[343968857,1733162225303,5111.55,0.00025,120]
[343968858,1733162226447,2243.07,0.00025,120]
[343968859,1733162226498,500.0,0.00025,120]
[343968860,1733162231630,7213.75,0.00025,120]
[343968861,1733162232434,500.0,0.00025,120]
[343968862,1733162232700,500.0,0.00025,120]
[343968863,1733162233217,48875.83,0.00025,120]
[343968864,1733162233934,10308.99,0.00025,120]
[343968865,1733162236182,500.0,0.00025,120]
[343968866,1733162237708,11654.17,0.00025,120]
[343968867,1733162237764,500.0,0.00025,120]
[343968868,1733162238479,547.75,0.00025,120]
[343968869,1733162241255,500.0,0.00025,120]
[343968870,1733162243303,500.0,0.00025,120]
[343968871,1733162243950,500.0,0.00025,120]
[343968872,1733162244003,671.2,0.00025,120]
[343968873,1733162244566,4974.5,0.00025,120]
[343968874,1733162245546,4035.6,0.00025,120]
[343968875,1733162247478,916.37,0.00025,120]
[343968876,1733162247531,500.0,0.00025,120]
[343968877,1733162249448,2618.04,0.00025,120]
[343968878,1733162249619,4462.06,0.00025,120]
[343968879,1733162250183,2563.96,0.00025,120]
[343968880,1733162254873,14158.69,0.00025,120]
[343968881,1733162254960,6103.37,0.00025,120]
[343968882,1733162255175,500.0,0.00025,120]
[343968883,1733162255642,500.0,0.00025,120]
[343968884,1733162255699,500.0,0.00025,120]
[343968885,1733162257701,500.0,0.00025,120]
[343968886,1733162258598,500.0,0.00025,120]
[343968887,1733162258657,978.51,0.00025,120]
[343968888,1733162259960,25749.63,0.00025,120]
[343968889,1733162261056,500.0,0.00025,120]
[343968890,1733162262365,22323.99,0.00025,120]
[343968892,1733162262935,1054.36,0.00025,120]
[343968893,1733162263064,18116.48,0.00025,120]
[343968894,1733162263338,160.89571662,0.00025,120]
[343968895,1733162263656,5115.79,0.00025,120]
[343968896,1733162266333,500.0,0.00025,120]
[343968897,1733162268259,1015.1,0.00025,120]
[343968898,1733162268345,500.0,0.00025,120]
[343968899,1733162269432,2073.17,0.00025,120]
[343968900,1733162270434,6590.98,0.00025,120]
[343968901,1733162271806,713.56,0.00025,120]
[343968902,1733162272387,500.0,0.00025,120]
[343968903,1733162279325,693.49,0.00025,120]
[343968904,1733162279379,500.0,0.00025,120]
[343968905,1733162280926,21012.12,0.00025,120]
[343968906,1733162282381,500.0,0.00025,120]
[343968907,1733162284603,3214.43,0.00025,120]
[343968908,1733162287176,503.66410376,0.00025,120]
[343968909,1733162287474,500.0,0.00025,120]
[343968910,1733162290666,343.77682609,0.00025,120]
[343968911,1733162291050,4967.54,0.00025,120]
[343968912,1733162291853,1363.03,0.00025,120]
[343968913,1733162291899,8029.31,0.00025,120]
[343968914,1733162293117,500.0,0.00025,120]
[343968915,1733162293687,500.0,0.00025,120]
[343968916,1733162293806,631.63,0.00025,120]
[343968917,1733162295733,500.0,0.00025,120]
[343968918,1733162295854,1172.08,0.00025,120]
[343968919,1733162298262,3513.46,0.00025,120]
[343968920,1733162298757,1534.61,0.00025,120]
[343968921,1733162298827,500.0,0.00025,120]
[343968922,1733162301448,500.0,0.00025,120]
[343968923,1733162302189,590.6,0.00025,120]
[343968924,1733162306750,686.27,0.00025,120]
[343968925,1733162307349,5361.16,0.00025,120]
[343968926,1733162309753,583.34,0.00025,120]
[343968927,1733162312651,500.0,0.00025,120]
[343968928,1733162312702,500.0,0.00025,120]
[343968929,1733162312761,8233.49,0.00025,120]
[343968930,1733162315193,532.06929753,0.00025,120]
[343968931,1733162316514,4146.94,0.00025,120]
[343968932,1733162316877,2955.04,0.00025,120]
[343968933,1733162320342,1347.67,0.00025,120]
[343968934,1733162320395,500.0,0.00025,120]
[343968935,1733162322216,617.55,0.00025,120]
[343968936,1733162325363,826.15,0.00025,120]
[343968937,1733162326377,618.34,0.00025,120]
[343968938,1733162326629,1379.27,0.00025,120]
[343968939,1733162326904,9451.11,0.00025,120]
[343968940,1733162327497,500.0,0.00025,120]
[343968941,1733162331526,4416.34,0.00025,120]
[343968942,1733162332883,2867.75,0.00025,120]
[343968943,1733162335794,500.0,0.00025,120]
[343968944,1733162336654,614.34,0.00025,120]
[343968945,1733162336913,644.94,0.00025,120]
[343968946,1733162336992,6593.73,0.00025,120]
[343968947,1733162338600,2154.11,0.00025,120]
[343968948,1733162339679,1906.14,0.00025,120]
[343968949,1733162339751,695.94,0.00025,120]
[343968950,1733162340752,6357.72,0.00025,120]
[343968951,1733162341538,4628.48,0.00025,120]
[343968952,1733162347038,500.0,0.00025,120]
[343968953,1733162348322,502.63421211,0.00025,120]
[343968954,1733162348688,500.0,0.00025,120]
[343968955,1733162349483,500.0,0.00025,120]
[343968956,1733162349652,1724.27,0.00025,120]
[343968957,1733162350133,500.0,0.00025,120]
[343968958,1733162350598,740.88,0.00025,120]
[343968959,1733162353114,45952.51,0.00025,120]
[343968960,1733162353549,1069.64,0.00025,120]
[343968961,1733162356101,527.39910872,0.00025,120]
[343968962,1733162358570,500.0,0.00025,120]
[343968963,1733162358842,500.0,0.00025,120]
[343968964,1733162359173,500.0,0.00025,120]
[343968965,1733162359839,500.0,0.00025,120]
[343968966,1733162360566,3647.99,0.00025,120]
[343968967,1733162361672,500.0,0.00025,120]
[343968968,1733162362167,726.8,0.00025,120]
[343968969,1733162363712,11440.27,0.00025,120]
[343968970,1733162364622,1823.38,0.00025,120]
[343968971,1733162365342,735.41,0.00025,120]
[343968972,1733162366362,1209.14,0.00025,120]
[343968973,1733162367574,20359.63,0.00025,120]
[343968974,1733162369699,500.0,0.00025,120]
[343968975,1733162369757,500.0,0.00025,120]
[343968976,1733162369907,2386.77,0.00025,120]
[343968977,1733162375184,16342.76,0.00025,120]
[343968978,1733162376535,1209.56,0.00025,120]
[343968979,1733162377258,500.0,0.00025,120]
[343968980,1733162379053,29710.37,0.00025,120]
[343968981,1733162381247,500.0,0.00025,120]
[343968982,1733162381441,10636.52,0.00025,120]
[343968983,1733162381607,500.0,0.00025,120]
[343968984,1733162381675,500.0,0.00025,120]
[343968985,1733162381752,157.987913,7e-05,10]
[343968986,1733162383958,3384.17,0.00025,120]